fUST/lending_fUST_20250523
["ID","MTS","AMOUNT","RATE_DAILY","PERIOD"]
[362124767,1748010632589,-430.0,0.00016999,2]
[362124768,1748010632601,-430.0,0.00016999,2]
[362124769,1748010632612,-430.0,0.00016999,2]
[362124770,1748010632624,-430.0,0.00016999,2]
[362124771,1748010632635,-430.0,0.00016999,2]
[362124772,1748010632645,-430.0,0.00016999,2]
[362124773,1748010632658,-333.85792035,0.00016999,2]
[362124774,1748010632669,-5527.28117629,0.00017,2]
[362124776,1748010638096,-536.9764501,0.00017,2]
[362124779,1748010638260,-29447.51097792,0.00017,2]
[362124783,1748010640469,-263.5149597,0.00017,2]
[362124794,1748010643288,-1812.34553316,0.0001683,2]
[362124804,1748011191920,205.98395244,0.000263,30]
[362124809,1748011289556,288.161579,0.00013699,2]
[362124887,1748011397035,-259.57282763,0.00015656,2]
[362124888,1748011399953,-263.22628436,0.00015656,2]
[362124889,1748011401345,-172.58301585,0.00015656,2]
[362124904,1748011406222,-338.43435853,0.00015656,2]
[362124939,1748011408166,-227.96385109,0.00015656,2]
[362124940,1748011410136,-152.0,0.00015656,2]
[362124941,1748011413121,-193.60574598,0.00015656,2]
[362124942,1748011415651,-180.81760979,0.00015656,2]
[362124943,1748011418331,-154.7466949,0.00015656,2]
[362124945,1748011421612,-288.09883264,0.00015656,2]
[362124947,1748011424129,-152.0,0.00015656,2]
[362124949,1748011426247,-160.0,0.00015656,2]
[362124951,1748011429932,-169.047256,0.00015656,2]
[362124954,1748011431980,-208.35025752,0.00015656,2]
[362124957,1748011437234,-314.6451405,0.00015656,2]
[362124958,1748011439237,-321.34927072,0.00015656,2]
[362124960,1748011440711,-181.33109235,0.00015656,2]
[362124965,1748011446011,-202.69353878,0.00015656,2]
[362124968,1748011449309,-166.22773546,0.00015656,2]
[362124969,1748011453141,-197.031022,0.00015656,2]
[362124970,1748011455774,-151.71809536,0.00015656,2]
[362124971,1748011457218,-200.0,0.00015656,2]
[362124972,1748011458768,-162.77430179,0.00015656,2]
[362124973,1748011461144,-152.0,0.00015656,2]
[362124974,1748011463040,-29.78306875,0.00015656,2]
[362124975,1748011470341,-241.80872783,0.00015557,2]
[362124976,1748011471886,-162.22875713,0.00015557,2]
[362124977,1748011473886,-200.06862657,0.00015557,2]
[362124978,1748011475384,-328.72610313,0.00015557,2]
[362124979,1748011478441,-380.70569851,0.00015557,2]
[362124980,1748011480096,-285.90165442,0.00015557,2]
[362124981,1748011482574,-308.03846108,0.00015557,2]
[362124982,1748011485314,-173.157137,0.00015557,2]
[362124983,1748011486865,-164.83253891,0.00015557,2]
[362124984,1748011490047,-249.64860836,0.00015557,2]
[362124985,1748011491660,-319.81311882,0.00015557,2]
[362124986,1748011494084,-163.33083919,0.00015557,2]
[362125025,1748011832267,-200.57371472,0.00015714,2]
[362125027,1748011832277,-654.82628528,0.00015972,2]
[362125040,1748011832476,-545.17371472,0.00015972,2]
[362125041,1748011832487,-300.0,0.00015974,2]
[362125042,1748011832497,-229.0,0.00015974,2]
[362125043,1748011832507,-300.0,0.00015974,2]
[362125044,1748011832517,-300.0,0.00015974,2]
[362125045,1748011832527,-18286.4263268,0.00015975,2]
[362125046,1748011832536,-2186.72162794,0.00016121,2]
[362125067,1748011838250,-765.0,0.00016121,2]
[362125069,1748011838288,-5180.706132,0.00016121,2]
[362125070,1748011838326,-650.72785096,0.00016121,2]
[362125071,1748011838336,-181.33612871,0.00016162,2]
[362125072,1748011838345,-477.20748992,0.00016438,2]
[362125073,1748011838355,-471.97113341,0.00016438,2]
[362125074,1748011838364,-477.90158132,0.00016438,2]
[362125075,1748011838373,-481.77908186,0.00016438,2]
[362125076,1748011838383,-430.0,0.00016438,2]
[362125077,1748011838392,-430.0,0.00016438,2]
[362125079,1748011838401,-500.0,0.00016438,2]
[362125080,1748011838411,-430.0,0.00016438,2]
[362125082,1748011838420,-430.0,0.00016438,2]
[362125083,1748011838430,-345.14569846,0.00016438,2]
[362125084,1748011838439,-15.33511346,0.00016438,2]
[362125085,1748011838451,-414.66488654,0.00016438,2]
[362125086,1748011838460,-430.0,0.00016438,2]
[362125087,1748011838470,-430.0,0.00016438,2]
[362125088,1748011838479,-430.0,0.00016438,2]
[362125090,1748011838488,-430.0,0.00016438,2]
[362125091,1748011838498,-430.0,0.00016438,2]
[362125092,1748011838508,-430.0,0.00016438,2]
[362125093,1748011838517,-356.48,0.00016438,2]
[362125094,1748011838527,-430.0,0.00016438,2]
[362125095,1748011838537,-430.0,0.00016438,2]
[362125096,1748011838547,-465.70909616,0.00016438,2]
[362125097,1748011838556,-430.0,0.00016438,2]
[362125098,1748011838568,-430.0,0.00016438,2]
[362125099,1748011838577,-453.07,0.00016438,2]
[362125100,1748011838587,-430.0,0.00016712,2]
[362125101,1748011838597,-500.0,0.00016712,2]
[362125102,1748011838606,-430.0,0.00016712,2]
[362125103,1748011838616,-430.0,0.00016712,2]
[362125104,1748011838625,-335.0,0.00016712,2]
[362125105,1748011838634,-430.0,0.00016712,2]
[362125106,1748011838644,-430.0,0.00016712,2]
[362125107,1748011838653,-430.0,0.00016712,2]
[362125108,1748011838663,-430.0,0.00016712,2]
[362125109,1748011838672,-430.0,0.00016712,2]
[362125110,1748011838681,-430.0,0.00016712,2]
[362125111,1748011838691,-430.0,0.00016712,2]
[362125112,1748011838700,-624.52179193,0.00016789,2]
[362125113,1748011838709,-306.69629227,0.00016886,2]
[362125114,1748011838718,-306.69629226,0.00016923,2]
[362125115,1748011838728,-306.69629226,0.0001696,2]
[362125116,1748011838737,-500.0,0.00016973,2]
[362125117,1748011838746,-322.03608124,0.00016973,2]
[362125118,1748011838756,-500.0,0.00016973,2]
[362125119,1748011838766,-502.50564121,0.00016973,2]
[362125120,1748011838775,-500.0,0.00016973,2]
[362125121,1748011838784,-430.0,0.00016986,2]
[362125122,1748011838793,-500.0,0.00016986,2]
[362125123,1748011838802,-220.73179961,0.00016986,2]
[362125488,1748011846333,-209.26820039,0.00016986,2]
[362125490,1748011846343,-227.93186404,0.00016986,2]
[362125492,1748011846352,-430.0,0.00016986,2]
[362125494,1748011846361,-430.0,0.00016986,2]
[362125496,1748011846371,-430.0,0.00016986,2]
[362125498,1748011846381,-430.0,0.00016986,2]
[362125500,1748011846391,-430.0,0.00016986,2]
[362125502,1748011846400,-430.0,0.00016986,2]
[362125504,1748011846409,-530.42,0.00016998,2]
[362125506,1748011846419,-430.0,0.00016998,2]
[362125508,1748011846428,-151.0,0.00016998,2]
[362125510,1748011846437,-172.58301585,0.00016999,2]
[362125512,1748011846446,-5013.61254725,0.00017,3]
[362125514,1748011846456,-49183.96235217,0.00017,2]
[362125516,1748011846465,-194282.71175,0.00017,2]
[362125518,1748011846474,-183.95042679,0.0001706,2]
[362125520,1748011846483,-430.0,0.0001726,2]
[362125522,1748011846493,-500.0,0.0001726,2]
[362125524,1748011846502,-508.5,0.0001726,2]
[362125526,1748011846511,-430.0,0.0001726,2]
[362125528,1748011846521,-430.0,0.0001726,2]
[362125530,1748011846530,-168.82,0.0001726,2]
[362125532,1748011846539,-430.0,0.0001726,2]
[362125534,1748011846549,-430.0,0.0001726,2]
[362125536,1748011846558,-430.0,0.0001726,2]
[362125538,1748011846568,-430.0,0.00017272,2]
[362125540,1748011846578,-1202.520253,0.00017456,2]
[362125542,1748011846587,-420.0,0.00017466,2]
[362125544,1748011846597,-430.0,0.00017534,2]
[362125546,1748011846607,-187.64,0.00017534,2]
[362125548,1748011846616,-430.0,0.00017534,2]
[362125551,1748011846625,-430.0,0.00017534,2]
[362125553,1748011846634,-430.0,0.00017534,2]
[362125555,1748011846644,-430.0,0.00017534,2]
[362125557,1748011846654,-430.0,0.00017534,2]
[362125559,1748011846663,-480.0,0.00017551,2]
[362125561,1748011846673,-324.68404351,0.000177,2]
[362125563,1748011846682,-324.68404322,0.000177,2]
[362125565,1748011846692,-324.68404322,0.000177,2]
[362125567,1748011846701,-324.68404322,0.00017728,2]
[362125569,1748011846711,-430.0,0.00017808,2]
[362125571,1748011846729,-430.0,0.00017808,2]
[362125573,1748011846739,-430.0,0.00017808,2]
[362125575,1748011846748,-430.0,0.00017808,2]
[362125577,1748011846758,-208.42,0.00017808,2]
[362125579,1748011846768,-1000.0,0.00017813,2]
[362125581,1748011846778,-324.68404322,0.00018003,2]
[362125583,1748011846788,-430.0,0.00018082,2]
[362125585,1748011846798,-416.4444344,0.00018082,2]
[362125587,1748011846807,-188.76,0.00018082,2]
[362125589,1748011846820,-430.0,0.00018082,2]
[362125591,1748011846830,-324.68404322,0.00018279,2]
[362125593,1748011846840,-430.0,0.00018356,2]
[362125595,1748011846849,-430.0,0.00018356,2]
[362125597,1748011846859,-324.68404322,0.00018555,2]
[362125599,1748011846869,-430.0,0.0001863,2]
[362125601,1748011846879,-430.0,0.0001863,2]
[362125603,1748011846889,-1000.0,0.00018813,2]
[362125605,1748011846898,-324.68404322,0.00018831,2]
[362125607,1748011846908,-430.0,0.00018904,2]
[362125609,1748011846918,-430.0,0.00018904,2]
[362125611,1748011846928,-183.95042678,0.00018908,2]
[362125614,1748011846938,-324.68404322,0.00019107,2]
[362125616,1748011846947,-430.0,0.00019178,2]
[362125618,1748011846956,-430.0,0.00019178,2]
[362125620,1748011846965,-255.71811751,0.00019178,2]
[362125622,1748011846975,-500.98319267,0.00019272,2]
[362125623,1748011846984,-500.0,0.00019272,2]
[362125625,1748011846993,-502.37133137,0.00019272,2]
[362125628,1748011847003,-500.0,0.00019353,2]
[362125630,1748011847012,-324.68404322,0.00019383,2]
[362125632,1748011847022,-430.0,0.00019452,2]
[362125634,1748011847031,-430.0,0.00019452,2]
[362125636,1748011847041,-500.0,0.00019455,2]
[362125638,1748011847053,-207.4,0.0001951,2]
[362125640,1748011847063,-500.0,0.00019604,2]
[362125642,1748011847078,-500.03767111,0.00019655,2]
[362125644,1748011847088,-500.0,0.00019655,2]
[362125646,1748011847099,-324.68404322,0.00019659,2]
[362125648,1748011847109,-502.56205692,0.00019682,2]
[362125650,1748011847119,-500.0,0.00019682,2]
[362125652,1748011847129,-345.76959677,0.00019726,2]
[362125654,1748011847139,-430.0,0.00019726,2]
[362125656,1748011847148,-367.12208631,0.00019759,2]
[362125658,1748011847158,-500.0,0.00019759,2]
[362125661,1748011847168,-894.64583333,0.00019783,2]
[362125663,1748011847177,-422.85710789,0.00019783,2]
[362125665,1748011847187,-17261.24643632,0.0001989,2]
[362125667,1748011847196,-324.68404322,0.00019934,2]
[362125669,1748011847206,-2014.29811252,0.0001999,2]
[362125671,1748011847215,-280.88380527,0.0002,30]
[362125673,1748011847225,-12647.66147447,0.0002,7]
[362125675,1748011847234,-894.64583333,0.0002,7]
[362125677,1748011847243,-212.48480548,0.0002,7]
[362125679,1748011847252,-430.0,0.0002,2]
[362125681,1748011847261,-455.80441585,0.00020035,2]
[362125683,1748011847274,-10773.21056967,0.00020035,2]
[362126697,1748011868671,-255.63193988,0.00016438,2]
[362126698,1748011896426,847.46,0.0002,120]
[362126699,1748012072246,206.76423893,0.00015,2]
[362126700,1748012330205,273.7535,0.00013699,2]
[362126702,1748012404444,-204.447257,0.00015174,2]
[362126703,1748012404468,-14.26779747,0.00015174,2]
[362126704,1748012406486,-186.42162141,0.00015174,2]
[362126705,1748012408905,-210.27881232,0.00015174,2]
[362126706,1748012410277,218.71505447,0.00015,2]
[362126707,1748012410339,-89.0317688,0.00015174,2]
[362126708,1748012410363,-127.09978921,0.00015174,2]
[362126709,1748012414287,-255.10301585,0.00015174,2]
[362126710,1748012416228,-117.79719494,0.00015174,2]
[362126816,1748013039461,-183.95042678,0.00016338,2]
[362126861,1748013039975,-160.0,0.00016436,2]
[362126862,1748013039986,-296.04957322,0.00016438,2]
[362126863,1748013040004,-103.95042678,0.00016438,2]
[362126865,1748013040014,-500.0,0.00016438,2]
[362126866,1748013040025,-400.0,0.00016438,2]
[362126867,1748013040035,-501.44698345,0.00016438,2]
[362126868,1748013040045,-341.34754094,0.00016438,2]
[362126869,1748013040055,-430.0,0.00016438,2]
[362126870,1748013040065,-500.0,0.00016438,2]
[362126871,1748013040075,-500.0,0.00016438,2]
[362126872,1748013040085,-500.0,0.00016438,2]
[362126873,1748013040095,-400.0,0.00016438,2]
[362126874,1748013040106,-430.0,0.00016438,2]
[362126875,1748013040117,-501.77666421,0.00016438,2]
[362126877,1748013040126,-500.0,0.00016438,2]
[362126878,1748013040136,-430.0,0.00016438,2]
[362126879,1748013040146,-400.0,0.00016438,2]
[362126880,1748013040156,-500.0,0.00016438,2]
[362126881,1748013040165,-500.0,0.00016438,2]
[362126882,1748013040176,-400.0,0.00016438,2]
[362126883,1748013040186,-400.0,0.00016438,2]
[362126884,1748013040195,-400.0,0.00016438,2]
[362126885,1748013040207,-400.0,0.00016438,2]
[362126886,1748013040217,-430.0,0.00016438,2]
[362126887,1748013040227,-216.67981002,0.00016438,2]
[362126888,1748013040237,-430.0,0.00016438,2]
[362126889,1748013040247,-430.0,0.00016438,2]
[362126890,1748013040257,-506.15363087,0.00016438,2]
[362126891,1748013040267,-500.0,0.00016438,2]
[362126892,1748013040277,-473.17,0.00016438,2]
[362126893,1748013040288,-400.0,0.00016438,2]
[362126894,1748013040299,-478.09028257,0.00016438,2]
[362126895,1748013040309,-430.0,0.00016438,2]
[362126896,1748013040319,-430.0,0.00016438,2]
[362126897,1748013040329,-400.0,0.00016438,2]
[362126898,1748013040339,-400.0,0.00016438,2]
[362126899,1748013040350,-430.0,0.00016438,2]
[362126900,1748013040359,-430.0,0.00016438,2]
[362126901,1748013040369,-430.0,0.00016438,2]
[362126902,1748013040379,-430.0,0.00016438,2]
[362126903,1748013040388,-500.0,0.00016438,2]
[362126904,1748013040398,-430.0,0.00016438,2]
[362126905,1748013040408,-430.0,0.00016438,2]
[362126907,1748013040417,-430.0,0.00016438,2]
[362126909,1748013040427,-430.0,0.00016438,2]
[362126912,1748013040442,-430.0,0.00016438,2]
[362126914,1748013040452,-430.0,0.00016438,2]
[362126916,1748013040464,-514.39836032,0.00016438,2]
[362126918,1748013040474,-500.0,0.00016438,2]
[362126920,1748013040484,-401.15484059,0.00016438,2]
[362126922,1748013040495,-400.0,0.00016438,2]
[362126924,1748013040506,-430.0,0.00016438,2]
[362126927,1748013040516,-500.0,0.00016438,2]
[362126929,1748013040526,-450.0,0.00016438,2]
[362126931,1748013040536,-430.0,0.00016438,2]
[362126933,1748013040547,-400.0,0.00016438,2]
[362126935,1748013040556,-479.59268791,0.00016438,2]
[362126937,1748013040566,-400.0,0.00016438,2]
[362126939,1748013040575,-500.0,0.00016438,2]
[362126941,1748013040585,-430.0,0.00016438,2]
[362126943,1748013040595,-430.0,0.00016438,2]
[362126945,1748013040606,-400.0,0.00016438,2]
[362126947,1748013040615,-400.0,0.00016438,2]
[362126949,1748013040625,-400.0,0.00016438,2]
[362126951,1748013040634,-465.98367526,0.00016438,2]
[362126953,1748013040644,-400.0,0.00016438,2]
[362126955,1748013040654,-400.0,0.00016438,2]
[362126957,1748013040664,-210.96226806,0.00016438,2]
[362126959,1748013040674,-495.1144221,0.00016438,2]
[362126962,1748013040684,-400.0,0.00016438,2]
[362126964,1748013040694,-400.0,0.00016438,2]
[362126966,1748013040704,-430.0,0.00016438,2]
[362126968,1748013040713,-400.0,0.00016438,2]
[362126970,1748013040723,-400.0,0.00016438,2]
[362126972,1748013040733,-400.0,0.00016438,2]
[362126974,1748013040743,-422.44454389,0.00016438,2]
[362126976,1748013040752,-430.0,0.00016438,2]
[362126978,1748013040762,-400.0,0.00016438,2]
[362126980,1748013040771,-400.0,0.00016438,2]
[362126982,1748013040782,-500.0,0.00016438,2]
[362126984,1748013040792,-430.0,0.00016438,2]
[362126986,1748013040802,-430.0,0.00016438,2]
[362126988,1748013040811,-430.0,0.00016438,2]
[362126990,1748013040821,-500.47142295,0.00016438,2]
[362126992,1748013040831,-430.0,0.00016438,2]
[362126994,1748013040840,-400.0,0.00016438,2]
[362126997,1748013040849,-400.0,0.00016438,2]
[362126999,1748013040864,-400.0,0.00016438,2]
[362127001,1748013040874,-400.0,0.00016438,2]
[362127003,1748013040886,-400.0,0.00016438,2]
[362127005,1748013040896,-450.0,0.00016438,2]
[362127007,1748013040906,-502.61198968,0.00016438,2]
[362127009,1748013040916,-400.0,0.00016438,2]
[362127011,1748013040926,-400.0,0.00016438,2]
[362127013,1748013040935,-430.0,0.00016438,2]
[362127015,1748013040945,-500.0,0.00016438,2]
[362127017,1748013040955,-430.0,0.00016438,2]
[362127019,1748013040965,-430.0,0.00016438,2]
[362127021,1748013040975,-522.91824357,0.00016438,2]
[362127023,1748013040985,-520.70729332,0.00016438,2]
[362127042,1748013041151,-430.0,0.00016438,2]
[362127044,1748013041163,-430.0,0.00016438,2]
[362127046,1748013041172,-430.0,0.00016438,2]
[362127048,1748013041182,-510.03668428,0.00016438,2]
[362127050,1748013041192,-400.0,0.00016438,2]
[362127052,1748013041203,-430.0,0.00016438,2]
[362127054,1748013041213,-507.98153235,0.00016438,2]
[362127056,1748013041222,-400.0,0.00016438,2]
[362127058,1748013041232,-430.0,0.00016438,2]
[362127060,1748013041241,-430.0,0.00016438,2]
[362127062,1748013041252,-430.0,0.00016438,2]
[362127064,1748013041262,-430.0,0.00016438,2]
[362127066,1748013041271,-400.0,0.00016438,2]
[362127068,1748013041281,-430.0,0.00016438,2]
[362127070,1748013041291,-430.0,0.00016438,2]
[362127072,1748013041300,-430.0,0.00016438,2]
[362127074,1748013041310,-400.0,0.00016438,2]
[362127076,1748013041320,-430.0,0.00016438,2]
[362127078,1748013041330,-400.0,0.00016438,2]
[362127080,1748013041340,-504.09797591,0.00016438,2]
[362127082,1748013041349,-400.0,0.00016438,2]
[362127084,1748013041359,-430.0,0.00016438,2]
[362127087,1748013041370,-400.0,0.00016438,2]
[362127088,1748013041379,-500.0,0.00016438,2]
[362127090,1748013041388,-400.0,0.00016438,2]
[362127092,1748013041398,-400.0,0.00016438,2]
[362127094,1748013041407,-400.0,0.00016438,2]
[362127097,1748013041417,-400.0,0.00016438,2]
[362127098,1748013041427,-400.0,0.00016438,2]
[362127101,1748013041437,-400.0,0.00016438,2]
[362127103,1748013041447,-430.0,0.00016438,2]
[362127105,1748013041457,-1000.0,0.00016438,2]
[362127107,1748013041469,-500.0,0.00016438,2]
[362127109,1748013041479,-500.0,0.00016438,2]
[362127111,1748013041488,-500.0,0.00016438,2]
[362127112,1748013041498,-500.0,0.00016438,2]
[362127114,1748013041507,-500.0,0.00016438,2]
[362127116,1748013041517,-400.0,0.00016438,2]
[362127118,1748013041526,-400.0,0.00016438,2]
[362127120,1748013041536,-400.0,0.00016438,2]
[362127122,1748013041545,-400.0,0.00016438,2]
[362127124,1748013041554,-500.0,0.00016438,2]
[362127126,1748013041564,-433.6,0.00016438,2]
[362127128,1748013041573,-400.0,0.00016438,2]
[362127130,1748013041582,-430.0,0.00016438,2]
[362127132,1748013041592,-500.0,0.00016438,2]
[362127134,1748013041601,-400.0,0.00016438,2]
[362127136,1748013041611,-500.0,0.00016438,2]
[362127138,1748013041620,-508.37697616,0.00016438,2]
[362127140,1748013041630,-430.0,0.00016438,2]
[362127142,1748013041640,-501.65230332,0.00016438,2]
[362127144,1748013041649,-500.0,0.00016438,2]
[362127146,1748013041658,-430.0,0.00016438,2]
[362127148,1748013041668,-500.0,0.00016438,2]
[362127150,1748013041678,-481.20205262,0.00016438,2]
[362127152,1748013041687,-500.0,0.00016438,2]
[362127154,1748013041697,-502.96567269,0.00016438,2]
[362127156,1748013041708,-400.0,0.00016438,2]
[362127158,1748013041717,-400.0,0.00016438,2]
[362127160,1748013041727,-500.0,0.00016438,2]
[362127162,1748013041736,-430.0,0.00016438,2]
[362127164,1748013041746,-442.38670019,0.00016438,2]
[362127166,1748013041755,-400.0,0.00016438,2]
[362127168,1748013041765,-430.0,0.00016438,2]
[362127170,1748013041775,-500.0,0.00016438,2]
[362127172,1748013041784,-500.0,0.00016438,2]
[362127174,1748013041794,-400.0,0.00016438,2]
[362127176,1748013041804,-430.0,0.00016438,2]
[362127178,1748013041814,-526.70631053,0.00016438,2]
[362127180,1748013041824,-400.0,0.00016438,2]
[362127182,1748013041834,-400.0,0.00016438,2]
[362127184,1748013041844,-505.19891667,0.00016438,2]
[362127186,1748013041853,-430.0,0.00016438,2]
[362127188,1748013041863,-504.7994108,0.00016438,2]
[362127190,1748013041873,-430.0,0.00016438,2]
[362127192,1748013041883,-430.0,0.00016438,2]
[362127194,1748013041892,-500.0,0.00016438,2]
[362127196,1748013041902,-400.0,0.00016438,2]
[362127198,1748013041911,-430.0,0.00016438,2]
[362127200,1748013041921,-430.0,0.00016438,2]
[362127202,1748013041931,-500.0,0.00016438,2]
[362127204,1748013041940,-430.0,0.00016438,2]
[362127206,1748013041950,-430.0,0.00016438,2]
[362127208,1748013041959,-400.0,0.00016438,2]
[362127210,1748013041969,-430.0,0.00016438,2]
[362127212,1748013041978,-228.58721033,0.00016438,2]
[362127230,1748013042153,-151.94193484,0.00016438,2]
[362127232,1748013042163,-500.0,0.00016438,2]
[362127234,1748013042173,-500.0,0.00016438,2]
[362127236,1748013042183,-500.0,0.00016438,2]
[362127238,1748013042192,-500.0,0.00016438,2]
[362127240,1748013042202,-500.0,0.00016438,2]
[362127242,1748013042212,-400.0,0.00016438,2]
[362127244,1748013042221,-430.0,0.00016438,2]
[362127246,1748013042231,-400.0,0.00016438,2]
[362127248,1748013042240,-400.0,0.00016438,2]
[362127250,1748013042249,-400.0,0.00016438,2]
[362127252,1748013042259,-430.0,0.00016438,2]
[362127254,1748013042268,-400.0,0.00016438,2]
[362127256,1748013042278,-430.0,0.00016438,2]
[362127258,1748013042288,-430.0,0.00016438,2]
[362127260,1748013042297,-430.0,0.00016438,2]
[362127262,1748013042308,-430.0,0.00016438,2]
[362127264,1748013042317,-409.84358086,0.00016438,2]
[362127266,1748013042326,-400.0,0.00016438,2]
[362127267,1748013042336,-433.88,0.00016438,2]
[362127269,1748013042345,-510.98,0.00016438,2]
[362127271,1748013042358,-430.0,0.00016438,2]
[362127273,1748013042368,-575.92,0.00016438,2]
[362127275,1748013042377,-430.0,0.00016438,2]
[362127277,1748013042387,-356.24062358,0.00016438,2]
[362127279,1748013042396,-430.0,0.00016438,2]
[362127281,1748013042407,-400.0,0.00016438,2]
[362127283,1748013042416,-400.42726605,0.00016438,2]
[362127285,1748013042426,-430.0,0.00016438,2]
[362127287,1748013042435,-400.0,0.00016438,2]
[362127289,1748013042444,-430.0,0.00016438,2]
[362127291,1748013042454,-430.0,0.00016438,2]
[362127293,1748013042467,-400.0,0.00016438,2]
[362127295,1748013042476,-430.0,0.00016438,2]
[362127297,1748013042485,-469.12301475,0.00016438,2]
[362127299,1748013042498,-48.18421494,0.00016438,2]
[362127301,1748013042508,-430.0,0.00016438,2]
[362127303,1748013042518,-388.97433202,0.00016438,2]
[362127306,1748013042530,-41.02566798,0.00016438,2]
[362127307,1748013042540,-430.0,0.00016438,2]
[362127309,1748013042549,-430.0,0.00016438,2]
[362127311,1748013042559,-430.0,0.00016438,2]
[362127313,1748013042568,-430.0,0.00016438,2]
[362127315,1748013042577,-400.0,0.00016438,2]
[362127317,1748013042586,-400.0,0.00016438,2]
[362127319,1748013042596,-255.26730144,0.00016438,2]
[362127321,1748013042609,-479.72210351,0.00016438,2]
[362127323,1748013042618,-430.0,0.00016438,2]
[362127325,1748013042627,-226.91321259,0.00016438,2]
[362127327,1748013042639,-203.08678741,0.00016438,2]
[362127329,1748013042649,-400.0,0.00016438,2]
[362127331,1748013042658,-400.0,0.00016438,2]
[362127333,1748013042668,-430.0,0.00016438,2]
[362127335,1748013042677,-430.0,0.00016438,2]
[362127337,1748013042687,-400.0,0.00016438,2]
[362127339,1748013042696,-200.0,0.00016438,2]
[362127341,1748013042706,-506.08208493,0.00016438,2]
[362127343,1748013042715,-501.28122029,0.00016438,2]
[362127345,1748013042725,-430.0,0.00016438,2]
[362127347,1748013042734,-430.0,0.00016438,2]
[362127349,1748013042744,-400.0,0.00016438,2]
[362127351,1748013042753,-502.74692449,0.00016438,2]
[362127353,1748013042763,-430.0,0.00016438,2]
[362127355,1748013042773,-430.0,0.00016438,2]
[362127357,1748013042783,-430.0,0.00016438,2]
[362127359,1748013042792,-400.0,0.00016438,2]
[362127361,1748013042801,-400.0,0.00016438,2]
[362127363,1748013042811,-430.0,0.00016438,2]
[362127365,1748013042821,-400.0,0.00016438,2]
[362127367,1748013042831,-430.0,0.00016438,2]
[362127369,1748013042840,-507.56,0.00016438,2]
[362127370,1748013042849,-400.0,0.00016438,2]
[362127372,1748013042863,-406.69462422,0.00016438,2]
[362127374,1748013042873,-430.0,0.00016438,2]
[362127376,1748013042882,-174.36806012,0.00016438,2]
[362127378,1748013042892,-430.0,0.00016438,2]
[362127380,1748013042902,-430.0,0.00016438,2]
[362127382,1748013042911,-500.13,0.00016438,2]
[362127384,1748013042921,-300.0,0.00016438,2]
[362127386,1748013042931,-400.0,0.00016438,2]
[362127388,1748013042941,-430.0,0.00016438,2]
[362127390,1748013042951,-151.0,0.00016438,2]
[362127392,1748013042961,-430.0,0.00016438,2]
[362127395,1748013042971,-430.0,0.00016438,2]
[362127398,1748013042980,-400.0,0.00016438,2]
[362127401,1748013042990,-403.08578272,0.00016438,2]
[362127404,1748013042999,-400.0,0.00016438,2]
[362127407,1748013043009,-400.0,0.00016438,2]
[362127410,1748013043018,-430.0,0.00016438,2]
[362127413,1748013043028,-400.0,0.00016438,2]